[Event "Titled Tuesday Blitz May 4 2021"]
[White "Kabanov, Nikolai"]
[Black "volunteers1998"]
[WhiteFideId "4127820"]
[WhiteElo "2376"]
[BlackElo "2193"]
[Result "1-0"]
[Round "01"]
[TimeControl "180+1"]
[Date "2021.05.04"]
[WhiteClock "0:00:12"]
[BlackClock "0:00:17"]

1. c4 {[%clk 0:02:59]}  f5 {[%clk 0:02:58]} 2. Nc3 {[%clk 0:02:59]}  Nf6 {[%clk 0:02:56]} 3. g3 {[%clk 0:03:00]}  g6 {[%clk 0:02:55]} 4. Bg2 {[%clk 0:03:00]}  Bg7 {[%clk 0:02:53]} 5. Nf3 {[%clk 0:02:59]}  d6 {[%clk 0:02:52]} 6. d4 {[%clk 0:02:58]}  O-O {[%clk 0:02:48]} 7. d5 {[%clk 0:02:55]}  e5 {[%clk 0:02:43]} 8. dxe6 {[%clk 0:02:55]}  Bxe6 {[%clk 0:02:39]} 9. Nd4 {[%clk 0:02:48]}  Bc8 {[%clk 0:02:36]} 10. Qb3 {[%clk 0:02:43]}  c6 {[%clk 0:02:19]} 11. O-O {[%clk 0:02:31]}  Qb6 {[%clk 0:02:14]} 12. Be3 {[%clk 0:02:09]}  Qxb3 {[%clk 0:02:09]} 13. Nxb3 {[%clk 0:02:09]}  Be6 {[%clk 0:02:02]} 14. Na5 {[%clk 0:02:00]}  b6 {[%clk 0:01:55]} 15. Nxc6 {[%clk 0:01:59]}  Nxc6 {[%clk 0:01:53]} 16. Bxc6 {[%clk 0:02:00]}  Rac8 {[%clk 0:01:50]} 17. Nd5 {[%clk 0:01:35]}  Kh8 {[%clk 0:01:36]} 18. Nxf6 {[%clk 0:01:12]}  Bxf6 {[%clk 0:01:31]} 19. Bd5 {[%clk 0:01:09]}  Bxd5 {[%clk 0:01:28]} 20. cxd5 {[%clk 0:01:10]}  Bxb2 {[%clk 0:01:26]} 21. Rab1 {[%clk 0:01:10]}  Bg7 {[%clk 0:01:15]} 22. Rfc1 {[%clk 0:01:09]}  Kg8 {[%clk 0:01:10]} 23. f3 {[%clk 0:00:50]}  Kf7 {[%clk 0:01:07]} 24. Kf2 {[%clk 0:00:50]}  Ke7 {[%clk 0:01:04]} 25. Bf4 {[%clk 0:00:45]}  Bd4+ {[%clk 0:01:00]} 26. e3 {[%clk 0:00:45]}  Bf6 {[%clk 0:00:58]} 27. Ke2 {[%clk 0:00:43]}  Kd7 {[%clk 0:00:54]} 28. e4 {[%clk 0:00:38]}  Rxc1 {[%clk 0:00:49]} 29. Rxc1 {[%clk 0:00:37]}  fxe4 {[%clk 0:00:41]} 30. fxe4 {[%clk 0:00:25]}  Bd4 {[%clk 0:00:42]} 31. Kd3 {[%clk 0:00:21]}  Bc5 {[%clk 0:00:39]} 32. h4 {[%clk 0:00:21]}  h5 {[%clk 0:00:34]} 33. a4 {[%clk 0:00:22]}  a5 {[%clk 0:00:30]} 34. Kc4 {[%clk 0:00:21]}  Kc7 {[%clk 0:00:27]} 35. Kb5 {[%clk 0:00:20]}  Kb7 {[%clk 0:00:25]} 36. Re1 {[%clk 0:00:17]}  Re8 {[%clk 0:00:24]} 37. Re2 {[%clk 0:00:17]}  Bb4 {[%clk 0:00:23]} 38. e5 {[%clk 0:00:13]}  dxe5 {[%clk 0:00:22]} 39. Rxe5 {[%clk 0:00:12]}  Rxe5 {[%clk 0:00:20]} 40. Bxe5 {[%clk 0:00:12]}  Kc8 {[%clk 0:00:20]} 41. Kc6 {[%clk 0:00:12]}  Bc5 {[%clk 0:00:18]} 42. d6 {[%clk 0:00:12]}  Kd8 {[%clk 0:00:18]} 43. Bf6+ {[%clk 0:00:11]}  Kc8 {[%clk 0:00:17]} 44. d7+ {[%clk 0:00:12]} 1-0


[Site "https://www.chess.com"]

[Event "Titled Tuesday Blitz May 4 2021"]
[White "Kakabayev, Mergen"]
[Black "Aditya Mittal"]
[WhiteFideId "14002990"]
[BlackFideId "35042025"]
[WhiteElo "2302"]
[BlackElo "2171"]
[Result "0-1"]
[Round "01"]
[TimeControl "180+1"]
[Date "2021.05.04"]
[WhiteClock "0:00:40"]
[BlackClock "0:00:26"]

1. e4 {[%clk 0:03:00]}  c5 {[%clk 0:02:59]} 2. Nf3 {[%clk 0:02:59]}  d6 {[%clk 0:03:00]} 3. d4 {[%clk 0:02:58]}  cxd4 {[%clk 0:03:01]} 4. Nxd4 {[%clk 0:02:58]}  Nf6 {[%clk 0:03:01]} 5. Nc3 {[%clk 0:02:57]}  a6 {[%clk 0:03:02]} 6. Bg5 {[%clk 0:02:54]}  e6 {[%clk 0:02:59]} 7. f4 {[%clk 0:02:53]}  Nbd7 {[%clk 0:02:58]} 8. Qf3 {[%clk 0:02:52]}  Qc7 {[%clk 0:02:58]} 9. O-O-O {[%clk 0:02:51]}  b5 {[%clk 0:02:56]} 10. a3 {[%clk 0:02:50]}  Bb7 {[%clk 0:02:53]} 11. g4 {[%clk 0:02:49]}  Be7 {[%clk 0:02:48]} 12. Bxf6 {[%clk 0:02:48]}  gxf6 {[%clk 0:02:44]} 13. f5 {[%clk 0:02:47]}  e5 {[%clk 0:02:38]} 14. Nb3 {[%clk 0:02:45]}  Rc8 {[%clk 0:02:36]} 15. Kb1 {[%clk 0:02:42]}  Nb6 {[%clk 0:02:34]} 16. Na5 {[%clk 0:02:31]}  Ba8 {[%clk 0:02:27]} 17. Qd3 {[%clk 0:02:25]}  d5 {[%clk 0:01:44]} 18. exd5 {[%clk 0:02:25]}  Bxa3 {[%clk 0:01:32]} 19. Nxb5 {[%clk 0:01:49]}  axb5 {[%clk 0:01:28]} 20. Qxa3 {[%clk 0:01:47]}  Qxc2+ {[%clk 0:01:23]} 21. Ka2 {[%clk 0:01:47]}  Nc4 {[%clk 0:00:53]} 22. Bxc4 {[%clk 0:01:32]}  bxc4 {[%clk 0:00:54]} 23. Rc1 {[%clk 0:01:30]}  Qe4 {[%clk 0:00:49]} 24. Rhd1 {[%clk 0:01:16]}  Bxd5 {[%clk 0:00:44]} 25. Qd6 {[%clk 0:01:13]}  Rd8 {[%clk 0:00:39]} 26. Qxf6 {[%clk 0:01:12]}  c3+ {[%clk 0:00:31]} 27. b3 {[%clk 0:00:40]}  Qa4+ {[%clk 0:00:26]} 0-1


[Site "https://www.chess.com"]

[Event "Titled Tuesday Blitz May 4 2021"]
[White "Kalajzic, Ivan"]
[Black "Nouri, Alekhine"]
[WhiteFideId "14506378"]
[BlackFideId "5216184"]
[WhiteElo "2163"]
[BlackElo "1894"]
[Result "1-0"]
[Round "01"]
[TimeControl "180+1"]
[Date "2021.05.04"]
[WhiteClock "0:00:21"]
[BlackClock "0:00:29"]

1. d4 {[%clk 0:02:51]}  Nf6 {[%clk 0:02:58]} 2. Nc3 {[%clk 0:02:50]}  d5 {[%clk 0:02:55]} 3. Bg5 {[%clk 0:02:50]}  c6 {[%clk 0:02:55]} 4. e3 {[%clk 0:02:50]}  g6 {[%clk 0:02:55]} 5. f4 {[%clk 0:02:50]}  Bg7 {[%clk 0:02:55]} 6. Nf3 {[%clk 0:02:50]}  O-O {[%clk 0:02:55]} 7. Be2 {[%clk 0:02:51]}  h6 {[%clk 0:02:54]} 8. Bh4 {[%clk 0:02:50]}  Bf5 {[%clk 0:02:55]} 9. O-O {[%clk 0:02:50]}  Nbd7 {[%clk 0:02:55]} 10. Ne5 {[%clk 0:02:50]}  e6 {[%clk 0:02:54]} 11. Bf3 {[%clk 0:02:49]}  Be4 {[%clk 0:02:54]} 12. Nxe4 {[%clk 0:02:48]}  dxe4 {[%clk 0:02:54]} 13. Nxd7 {[%clk 0:02:33]}  Qxd7 {[%clk 0:02:48]} 14. Bxf6 {[%clk 0:02:29]}  exf3 {[%clk 0:02:49]} 15. Bxg7 {[%clk 0:02:22]}  fxg2 {[%clk 0:02:48]} 16. Bxf8 {[%clk 0:02:18]}  gxf1=Q+ {[%clk 0:02:48]} 17. Qxf1 {[%clk 0:02:17]}  Rxf8 {[%clk 0:02:48]} 18. c3 {[%clk 0:02:10]}  Qd5 {[%clk 0:02:47]} 19. Qg2 {[%clk 0:02:06]}  Rd8 {[%clk 0:02:47]} 20. Qxd5 {[%clk 0:02:06]}  exd5 {[%clk 0:02:46]} 21. Kf2 {[%clk 0:02:01]}  Re8 {[%clk 0:02:46]} 22. Rc1 {[%clk 0:01:59]}  f5 {[%clk 0:02:42]} 23. c4 {[%clk 0:01:57]}  dxc4 {[%clk 0:02:41]} 24. Rxc4 {[%clk 0:01:58]}  Kf7 {[%clk 0:02:41]} 25. Rc5 {[%clk 0:01:53]}  Kf6 {[%clk 0:02:36]} 26. Re5 {[%clk 0:01:52]}  Rd8 {[%clk 0:02:33]} 27. h4 {[%clk 0:01:50]}  b6 {[%clk 0:02:32]} 28. b4 {[%clk 0:01:49]}  g5 {[%clk 0:01:49]} 29. hxg5+ {[%clk 0:01:48]}  hxg5 {[%clk 0:01:50]} 30. fxg5+ {[%clk 0:01:46]}  Kxg5 {[%clk 0:01:51]} 31. Re7 {[%clk 0:01:32]}  Rh8 {[%clk 0:01:44]} 32. Kg3 {[%clk 0:01:27]}  a5 {[%clk 0:01:39]} 33. bxa5 {[%clk 0:01:23]}  bxa5 {[%clk 0:01:40]} 34. Re5 {[%clk 0:01:18]}  Rb8 {[%clk 0:01:27]} 35. Rxa5 {[%clk 0:01:13]}  Kf6 {[%clk 0:01:21]} 36. Kf4 {[%clk 0:01:12]}  Rb2 {[%clk 0:01:20]} 37. Rxf5+ {[%clk 0:01:11]}  Ke6 {[%clk 0:01:21]} 38. Ra5 {[%clk 0:01:09]}  Kd6 {[%clk 0:01:21]} 39. Ke4 {[%clk 0:01:09]}  Rh2 {[%clk 0:01:21]} 40. Ra8 {[%clk 0:01:07]}  Rh4+ {[%clk 0:01:20]} 41. Kd3 {[%clk 0:01:07]}  Rh2 {[%clk 0:01:21]} 42. a4 {[%clk 0:01:07]}  c5 {[%clk 0:01:21]} 43. Ra6+ {[%clk 0:01:05]}  Kc7 {[%clk 0:01:18]} 44. dxc5 {[%clk 0:01:05]}  Rh4 {[%clk 0:01:16]} 45. e4 {[%clk 0:01:03]}  Rh1 {[%clk 0:01:15]} 46. Kd4 {[%clk 0:01:02]}  Rd1+ {[%clk 0:01:15]} 47. Kc4 {[%clk 0:01:02]}  Rc1+ {[%clk 0:01:16]} 48. Kd5 {[%clk 0:01:02]}  Rd1+ {[%clk 0:01:16]} 49. Ke5 {[%clk 0:01:00]}  Rc1 {[%clk 0:01:16]} 50. c6 {[%clk 0:00:59]}  Re1 {[%clk 0:01:16]} 51. a5 {[%clk 0:00:58]}  Ra1 {[%clk 0:01:14]} 52. Kd5 {[%clk 0:00:55]}  Rd1+ {[%clk 0:01:14]} 53. Ke6 {[%clk 0:00:55]}  Rd6+ {[%clk 0:01:13]} 54. Ke7 {[%clk 0:00:53]}  Rd1 {[%clk 0:01:09]} 55. e5 {[%clk 0:00:53]}  Re1 {[%clk 0:01:08]} 56. e6 {[%clk 0:00:53]}  Re5 {[%clk 0:01:08]} 57. Kf6 {[%clk 0:00:52]}  Re1 {[%clk 0:01:08]} 58. e7 {[%clk 0:00:51]}  Rf1+ {[%clk 0:01:09]} 59. Ke6 {[%clk 0:00:50]}  Re1+ {[%clk 0:01:09]} 60. Kf7 {[%clk 0:00:50]}  Rf1+ {[%clk 0:01:09]} 61. Ke8 {[%clk 0:00:50]}  Re1 {[%clk 0:01:08]} 62. Rb6 {[%clk 0:00:31]}  Kd6 {[%clk 0:01:08]} 63. Rb7 {[%clk 0:00:27]}  Kxc6 {[%clk 0:01:04]} 64. a6 {[%clk 0:00:27]}  Rh1 {[%clk 0:00:33]} 65. Kd8 {[%clk 0:00:27]}  Rd1+ {[%clk 0:00:33]} 66. Kc8 {[%clk 0:00:23]}  Re1 {[%clk 0:00:29]} 67. a7 {[%clk 0:00:21]} 1-0


[Site "https://www.chess.com"]

[Event "Titled Tuesday Blitz May 4 2021"]
[White "Kaufman, Raymond"]
[Black "Mohammad Fahad, Rahman"]
[WhiteFideId "2015056"]
[BlackFideId "10207791"]
[WhiteElo "2321"]
[BlackElo "2308"]
[Result "0-1"]
[Round "01"]
[TimeControl "180+1"]
[Date "2021.05.04"]
[WhiteClock "0:00:15"]
[BlackClock "0:00:16"]

1. d4 {[%clk 0:03:00]}  d5 {[%clk 0:01:51]} 2. c4 {[%clk 0:02:50]}  c6 {[%clk 0:01:49]} 3. Nf3 {[%clk 0:02:45]}  Nf6 {[%clk 0:01:47]} 4. Nc3 {[%clk 0:02:45]}  e6 {[%clk 0:01:46]} 5. Qd3 {[%clk 0:02:40]}  dxc4 {[%clk 0:01:43]} 6. Qxc4 {[%clk 0:02:41]}  b5 {[%clk 0:01:43]} 7. Qd3 {[%clk 0:02:41]}  a6 {[%clk 0:01:36]} 8. e4 {[%clk 0:02:35]}  c5 {[%clk 0:01:32]} 9. d5 {[%clk 0:02:29]}  c4 {[%clk 0:01:26]} 10. Qd4 {[%clk 0:02:12]}  b4 {[%clk 0:01:15]} 11. Na4 {[%clk 0:01:54]}  exd5 {[%clk 0:01:13]} 12. exd5 {[%clk 0:01:45]}  Qa5 {[%clk 0:00:47]} 13. Nb6 {[%clk 0:01:32]}  Bc5 {[%clk 0:00:45]} 14. Qe5+ {[%clk 0:01:32]}  Kd8 {[%clk 0:00:46]} 15. Nxc4 {[%clk 0:01:26]}  Qc7 {[%clk 0:00:36]} 16. Qxc7+ {[%clk 0:01:23]}  Kxc7 {[%clk 0:00:37]} 17. Bf4+ {[%clk 0:01:23]}  Kb7 {[%clk 0:00:38]} 18. O-O-O {[%clk 0:01:19]}  Bxf2 {[%clk 0:00:32]} 19. Nfe5 {[%clk 0:00:53]}  Rf8 {[%clk 0:00:22]} 20. Nxf7 {[%clk 0:00:49]}  Bg4 {[%clk 0:00:21]} 21. Nfd6+ {[%clk 0:00:40]}  Ka7 {[%clk 0:00:21]} 22. Rd2 {[%clk 0:00:40]}  Bc5 {[%clk 0:00:21]} 23. h3 {[%clk 0:00:36]}  Bh5 {[%clk 0:00:20]} 24. g4 {[%clk 0:00:34]}  Bg6 {[%clk 0:00:21]} 25. Bg2 {[%clk 0:00:34]}  Nbd7 {[%clk 0:00:21]} 26. Na5 {[%clk 0:00:29]}  Nxg4 {[%clk 0:00:19]} 27. Nc6+ {[%clk 0:00:29]}  Kb6 {[%clk 0:00:19]} 28. Nc4+ {[%clk 0:00:28]}  Kb5 {[%clk 0:00:18]} 29. Bf1 {[%clk 0:00:24]}  Rxf4 {[%clk 0:00:15]} 30. N4e5+ {[%clk 0:00:20]}  Rxf1+ {[%clk 0:00:14]} 31. Rxf1 {[%clk 0:00:19]}  Ngxe5 {[%clk 0:00:15]} 32. Nxe5 {[%clk 0:00:18]}  Nxe5 {[%clk 0:00:16]} 33. Rfd1 {[%clk 0:00:15]}  Be3 {[%clk 0:00:16]} 0-1


[Site "https://www.chess.com"]

[Event "Titled Tuesday Blitz May 4 2021"]
[White "Kilpatrick, Callum"]
[Black "Haessel, Dale R."]
[WhiteFideId "414425"]
[BlackFideId "2012618"]
[WhiteElo "2489"]
[BlackElo "2167"]
[Result "1-0"]
[Round "01"]
[TimeControl "180+1"]
[Date "2021.05.04"]
[WhiteClock "0:01:01"]
[BlackClock "0:00:03"]

1. e4 {[%clk 0:03:00]}  e5 {[%clk 0:03:00]} 2. Nf3 {[%clk 0:02:59]}  Nc6 {[%clk 0:03:00]} 3. Bb5 {[%clk 0:03:00]}  Nf6 {[%clk 0:02:59]} 4. O-O {[%clk 0:02:57]}  Nxe4 {[%clk 0:02:58]} 5. d4 {[%clk 0:02:56]}  Nd6 {[%clk 0:02:57]} 6. Bxc6 {[%clk 0:02:56]}  dxc6 {[%clk 0:02:58]} 7. dxe5 {[%clk 0:02:57]}  Nf5 {[%clk 0:02:58]} 8. Qxd8+ {[%clk 0:02:57]}  Kxd8 {[%clk 0:02:59]} 9. Nc3 {[%clk 0:02:56]}  Bd7 {[%clk 0:02:52]} 10. h3 {[%clk 0:02:52]}  h6 {[%clk 0:02:10]} 11. g4 {[%clk 0:02:43]}  Ne7 {[%clk 0:02:10]} 12. Rd1 {[%clk 0:02:40]}  Kc8 {[%clk 0:02:09]} 13. Be3 {[%clk 0:02:20]}  b6 {[%clk 0:02:08]} 14. Rd2 {[%clk 0:02:15]}  c5 {[%clk 0:01:31]} 15. Rad1 {[%clk 0:02:05]}  Bc6 {[%clk 0:01:29]} 16. Rd8+ {[%clk 0:01:42]}  Kb7 {[%clk 0:01:28]} 17. Rxa8 {[%clk 0:01:39]}  Kxa8 {[%clk 0:01:28]} 18. Rd8+ {[%clk 0:01:38]}  Kb7 {[%clk 0:01:29]} 19. Nh4 {[%clk 0:01:37]}  g6 {[%clk 0:00:29]} 20. Ng2 {[%clk 0:01:27]}  Rg8 {[%clk 0:00:20]} 21. Nf4 {[%clk 0:01:04]}  Bg7 {[%clk 0:00:17]} 22. Rxg8 {[%clk 0:01:05]}  Nxg8 {[%clk 0:00:17]} 23. e6 {[%clk 0:01:05]}  fxe6 {[%clk 0:00:12]} 24. Nxg6 {[%clk 0:01:05]}  Bxc3 {[%clk 0:00:08]} 25. bxc3 {[%clk 0:01:05]}  Be4 {[%clk 0:00:08]} 26. Nf4 {[%clk 0:01:01]}  Bxc2 {[%clk 0:00:03]} 27. Nxe6 {[%clk 0:01:01]} 1-0


[Site "https://www.chess.com"]

[Event "Titled Tuesday Blitz May 4 2021"]
[White "Kiselev, Gennady"]
[Black "Shyaamnikhil P"]
[WhiteFideId "4117107"]
[BlackFideId "5024218"]
[WhiteElo "2323"]
[BlackElo "2300"]
[Result "0-1"]
[Round "01"]
[TimeControl "180+1"]
[Date "2021.05.04"]
[WhiteClock "0:00:03"]
[BlackClock "0:01:26"]

1. e4 {[%clk 0:01:47]}  c5 {[%clk 0:02:57]} 2. Nf3 {[%clk 0:01:45]}  d6 {[%clk 0:02:56]} 3. d4 {[%clk 0:01:43]}  cxd4 {[%clk 0:02:57]} 4. Nxd4 {[%clk 0:01:42]}  Nf6 {[%clk 0:02:57]} 5. Nc3 {[%clk 0:01:41]}  a6 {[%clk 0:02:45]} 6. f4 {[%clk 0:01:39]}  Qc7 {[%clk 0:02:42]} 7. Be2 {[%clk 0:01:37]}  e5 {[%clk 0:02:42]} 8. Nf3 {[%clk 0:01:36]}  Nbd7 {[%clk 0:02:34]} 9. O-O {[%clk 0:01:34]}  Be7 {[%clk 0:02:33]} 10. Kh1 {[%clk 0:01:33]}  O-O {[%clk 0:02:30]} 11. a4 {[%clk 0:01:32]}  exf4 {[%clk 0:02:29]} 12. Bxf4 {[%clk 0:01:30]}  Nc5 {[%clk 0:02:28]} 13. Bd3 {[%clk 0:01:28]}  Bg4 {[%clk 0:02:27]} 14. Qe1 {[%clk 0:01:26]}  Bh5 {[%clk 0:02:23]} 15. Qg3 {[%clk 0:01:25]}  Bg6 {[%clk 0:02:23]} 16. Bd2 {[%clk 0:01:22]}  Nfxe4 {[%clk 0:02:15]} 17. Bxe4 {[%clk 0:01:04]}  Nxe4 {[%clk 0:02:16]} 18. Qf4 {[%clk 0:00:52]}  Nxd2 {[%clk 0:02:07]} 19. Qxd2 {[%clk 0:00:48]}  Rfe8 {[%clk 0:02:00]} 20. Nd5 {[%clk 0:00:44]}  Qxc2 {[%clk 0:01:49]} 21. Qxc2 {[%clk 0:00:40]}  Bxc2 {[%clk 0:01:50]} 22. Nc7 {[%clk 0:00:39]}  Bf6 {[%clk 0:01:50]} 23. Nxa8 {[%clk 0:00:35]}  Rxa8 {[%clk 0:01:50]} 24. Rf2 {[%clk 0:00:23]}  Be4 {[%clk 0:01:45]} 25. Rd1 {[%clk 0:00:21]}  d5 {[%clk 0:01:43]} 26. Kg1 {[%clk 0:00:19]}  Rc8 {[%clk 0:01:42]} 27. h3 {[%clk 0:00:18]}  h6 {[%clk 0:01:41]} 28. Nd4 {[%clk 0:00:17]}  Rc4 {[%clk 0:01:40]} 29. Rfd2 {[%clk 0:00:15]}  Rxa4 {[%clk 0:01:39]} 30. b3 {[%clk 0:00:13]}  Rb4 {[%clk 0:01:39]} 31. Kh2 {[%clk 0:00:11]}  Be5+ {[%clk 0:01:38]} 32. Kg1 {[%clk 0:00:10]}  Bxd4+ {[%clk 0:01:33]} 33. Rxd4 {[%clk 0:00:08]}  Rxb3 {[%clk 0:01:34]} 34. R1d2 {[%clk 0:00:07]}  a5 {[%clk 0:01:28]} 35. Ra4 {[%clk 0:00:04]}  b6 {[%clk 0:01:28]} 36. Ra1 {[%clk 0:00:04]}  Bd3 {[%clk 0:01:26]} 37. Kf2 {[%clk 0:00:03]}  Bc4 {[%clk 0:01:26]} 0-1


[Site "https://www.chess.com"]

[Event "Titled Tuesday Blitz May 4 2021"]
[White "Kiseljova, Marya"]
[Black "Crevatin, Leo"]
[WhiteFideId "4155009"]
[BlackFideId "1726307"]
[WhiteElo "1797"]
[BlackElo "2081"]
[Result "1/2-1/2"]
[Round "01"]
[TimeControl "180+1"]
[Date "2021.05.04"]
[WhiteClock "0:00:11"]
[BlackClock "0:00:11"]

1. d4 {[%clk 0:03:00]}  Nf6 {[%clk 0:02:58]} 2. Bf4 {[%clk 0:03:00]}  d5 {[%clk 0:02:58]} 3. e3 {[%clk 0:02:59]}  c5 {[%clk 0:02:58]} 4. c3 {[%clk 0:02:58]}  Nc6 {[%clk 0:02:58]} 5. Nd2 {[%clk 0:02:58]}  e6 {[%clk 0:02:57]} 6. Ngf3 {[%clk 0:02:54]}  Nh5 {[%clk 0:02:56]} 7. Bg3 {[%clk 0:02:49]}  Qb6 {[%clk 0:02:54]} 8. Qc2 {[%clk 0:02:34]}  Bd7 {[%clk 0:02:49]} 9. Ne5 {[%clk 0:02:31]}  Nxe5 {[%clk 0:02:26]} 10. Bxe5 {[%clk 0:02:25]}  f6 {[%clk 0:02:25]} 11. Bg3 {[%clk 0:02:24]}  Nxg3 {[%clk 0:02:22]} 12. hxg3 {[%clk 0:02:24]}  f5 {[%clk 0:02:18]} 13. Be2 {[%clk 0:02:19]}  Rc8 {[%clk 0:02:17]} 14. Bh5+ {[%clk 0:02:18]}  Kd8 {[%clk 0:02:13]} 15. dxc5 {[%clk 0:02:11]}  Bxc5 {[%clk 0:02:11]} 16. Nb3 {[%clk 0:02:04]}  Bd6 {[%clk 0:02:02]} 17. Qd2 {[%clk 0:01:48]}  Rf8 {[%clk 0:01:54]} 18. Be2 {[%clk 0:01:42]}  a5 {[%clk 0:01:48]} 19. Rxh7 {[%clk 0:01:40]}  a4 {[%clk 0:01:47]} 20. Nd4 {[%clk 0:01:39]}  e5 {[%clk 0:01:47]} 21. Nf3 {[%clk 0:01:34]}  a3 {[%clk 0:01:41]} 22. bxa3 {[%clk 0:01:28]}  Bxa3 {[%clk 0:01:33]} 23. Qxd5 {[%clk 0:01:16]}  Bb2 {[%clk 0:01:20]} 24. Rd1 {[%clk 0:01:15]}  Bxc3+ {[%clk 0:01:19]} 25. Kf1 {[%clk 0:01:15]}  Qc6 {[%clk 0:01:10]} 26. Rxg7 {[%clk 0:00:58]}  Rc7 {[%clk 0:01:03]} 27. Bb5 {[%clk 0:00:49]}  Qxd5 {[%clk 0:00:43]} 28. Rxd5 {[%clk 0:00:48]}  e4 {[%clk 0:00:40]} 29. Rgxd7+ {[%clk 0:00:42]}  Rxd7 {[%clk 0:00:39]} 30. Rxd7+ {[%clk 0:00:42]}  Kc8 {[%clk 0:00:39]} 31. Nd4 {[%clk 0:00:39]}  Rh8 {[%clk 0:00:39]} 32. Kg1 {[%clk 0:00:32]}  Re8 {[%clk 0:00:27]} 33. Nxf5 {[%clk 0:00:28]}  Re5 {[%clk 0:00:26]} 34. Nd6+ {[%clk 0:00:27]}  Kb8 {[%clk 0:00:26]} 35. Rxb7+ {[%clk 0:00:25]}  Ka8 {[%clk 0:00:26]} 36. Bc6 {[%clk 0:00:23]}  Rc5 {[%clk 0:00:18]} 37. Rb6+ {[%clk 0:00:16]}  Ka7 {[%clk 0:00:18]} 38. Rb7+ {[%clk 0:00:15]}  Ka6 {[%clk 0:00:18]} 39. Bb5+ {[%clk 0:00:13]}  Ka5 {[%clk 0:00:15]} 40. Ra7+ {[%clk 0:00:12]}  Kb6 {[%clk 0:00:13]} 41. Ra6+ {[%clk 0:00:11]}  Kc7 {[%clk 0:00:12]} 42. Ne8+ {[%clk 0:00:11]}  Kb7 {[%clk 0:00:12]} 43. Rb6+ {[%clk 0:00:09]}  Ka7 {[%clk 0:00:11]} 44. Rc6 {[%clk 0:00:06]}  Rxb5 {[%clk 0:00:09]} 45. Rxc3 {[%clk 0:00:03]}  Rb1+ {[%clk 0:00:10]} 46. Kh2 {[%clk 0:00:04]}  Rb2 {[%clk 0:00:11]} 47. Kh3 {[%clk 0:00:04]}  Rxf2 {[%clk 0:00:10]} 48. Nd6 {[%clk 0:00:04]}  Rf6 {[%clk 0:00:10]} 49. Nxe4 {[%clk 0:00:05]}  Re6 {[%clk 0:00:10]} 50. Kg4 {[%clk 0:00:06]}  Rxe4+ {[%clk 0:00:10]} 51. Kf5 {[%clk 0:00:07]}  Ra4 {[%clk 0:00:10]} 52. Rd3 {[%clk 0:00:07]}  Kb7 {[%clk 0:00:10]} 53. e4 {[%clk 0:00:08]}  Rxa2 {[%clk 0:00:10]} 54. Rd5 {[%clk 0:00:08]}  Rxg2 {[%clk 0:00:09]} 55. Ke5 {[%clk 0:00:09]}  Rxg3 {[%clk 0:00:09]} 56. Rd7+ {[%clk 0:00:09]}  Kc6 {[%clk 0:00:10]} 57. Rd6+ {[%clk 0:00:10]}  Kc7 {[%clk 0:00:09]} 58. Rd5 {[%clk 0:00:10]}  Rg5+ {[%clk 0:00:09]} 59. Kf6 {[%clk 0:00:10]}  Rxd5 {[%clk 0:00:09]} 60. exd5 {[%clk 0:00:11]}  Kd6 {[%clk 0:00:10]} 61. Kf5 {[%clk 0:00:11]}  Kxd5 {[%clk 0:00:11]} 1/2-1/2


[Site "https://www.chess.com"]

[Event "Titled Tuesday Blitz May 4 2021"]
[White "Komiagina, Maria"]
[Black "Avramidou, Anastasia"]
[WhiteFideId "4153987"]
[BlackFideId "4239873"]
[WhiteElo "2014"]
[BlackElo "2183"]
[Result "1-0"]
[Round "01"]
[TimeControl "180+1"]
[Date "2021.05.04"]
[WhiteClock "0:00:07"]
[BlackClock "0:00:11"]

1. e4 {[%clk 0:02:59]}  g6 {[%clk 0:02:59]} 2. d4 {[%clk 0:02:59]}  Bg7 {[%clk 0:03:00]} 3. Nc3 {[%clk 0:02:58]}  d6 {[%clk 0:03:00]} 4. Be3 {[%clk 0:02:57]}  Nf6 {[%clk 0:03:01]} 5. h3 {[%clk 0:02:55]}  O-O {[%clk 0:03:01]} 6. Qd2 {[%clk 0:02:55]}  c6 {[%clk 0:03:02]} 7. a4 {[%clk 0:02:43]}  a5 {[%clk 0:03:00]} 8. f4 {[%clk 0:02:39]}  Na6 {[%clk 0:03:01]} 9. Nf3 {[%clk 0:02:38]}  Nb4 {[%clk 0:02:59]} 10. Be2 {[%clk 0:02:31]}  Qc7 {[%clk 0:02:59]} 11. O-O {[%clk 0:02:22]}  Nh5 {[%clk 0:02:56]} 12. Kh2 {[%clk 0:02:02]}  e5 {[%clk 0:02:51]} 13. dxe5 {[%clk 0:01:57]}  dxe5 {[%clk 0:02:52]} 14. Nxe5 {[%clk 0:01:35]}  Bxe5 {[%clk 0:02:51]} 15. fxe5 {[%clk 0:01:35]}  Qxe5+ {[%clk 0:02:52]} 16. Kg1 {[%clk 0:01:34]}  Ng3 {[%clk 0:02:48]} 17. Rf2 {[%clk 0:01:23]}  Nxe2+ {[%clk 0:02:47]} 18. Qxe2 {[%clk 0:01:21]}  Be6 {[%clk 0:02:46]} 19. Rd1 {[%clk 0:01:11]}  Rfe8 {[%clk 0:02:46]} 20. Bd4 {[%clk 0:01:10]}  Qh5 {[%clk 0:02:44]} 21. Qe3 {[%clk 0:01:00]}  Rad8 {[%clk 0:02:32]} 22. Rdf1 {[%clk 0:00:59]}  Bc4 {[%clk 0:02:25]} 23. Re1 {[%clk 0:00:56]}  Nd5 {[%clk 0:02:16]} 24. Nxd5 {[%clk 0:00:54]}  Bxd5 {[%clk 0:02:16]} 25. Qf4 {[%clk 0:00:51]}  f5 {[%clk 0:01:48]} 26. Qc7 {[%clk 0:00:43]}  Qh6 {[%clk 0:01:43]} 27. Be3 {[%clk 0:00:37]}  f4 {[%clk 0:00:37]} 28. Bxf4 {[%clk 0:00:36]}  Qg7 {[%clk 0:00:37]} 29. Qxg7+ {[%clk 0:00:31]}  Kxg7 {[%clk 0:00:38]} 30. Rfe2 {[%clk 0:00:31]}  Bc4 {[%clk 0:00:19]} 31. Re3 {[%clk 0:00:29]}  Bf7 {[%clk 0:00:20]} 32. Bc7 {[%clk 0:00:28]}  Rd4 {[%clk 0:00:18]} 33. Bxa5 {[%clk 0:00:28]}  Rxa4 {[%clk 0:00:19]} 34. Bc3+ {[%clk 0:00:27]}  Kg8 {[%clk 0:00:19]} 35. b3 {[%clk 0:00:27]}  Ra2 {[%clk 0:00:19]} 36. R3e2 {[%clk 0:00:26]}  b5 {[%clk 0:00:15]} 37. Rd1 {[%clk 0:00:24]}  Be6 {[%clk 0:00:15]} 38. Rf2 {[%clk 0:00:23]}  Ra7 {[%clk 0:00:15]} 39. Rd6 {[%clk 0:00:22]}  Bf7 {[%clk 0:00:13]} 40. e5 {[%clk 0:00:20]}  Re6 {[%clk 0:00:11]} 41. Rxe6 {[%clk 0:00:19]}  Bxe6 {[%clk 0:00:12]} 42. Bb4 {[%clk 0:00:19]}  Bd5 {[%clk 0:00:12]} 43. Rf8+ {[%clk 0:00:18]}  Kg7 {[%clk 0:00:12]} 44. Re8 {[%clk 0:00:18]}  Ra1+ {[%clk 0:00:12]} 45. Kf2 {[%clk 0:00:18]}  Rc1 {[%clk 0:00:13]} 46. c3 {[%clk 0:00:16]}  Rc2+ {[%clk 0:00:12]} 47. Ke3 {[%clk 0:00:16]}  Rxg2 {[%clk 0:00:12]} 48. e6 {[%clk 0:00:15]}  Rg3+ {[%clk 0:00:12]} 49. Kd4 {[%clk 0:00:15]}  Rxh3 {[%clk 0:00:10]} 50. e7 {[%clk 0:00:15]}  Kf7 {[%clk 0:00:11]} 51. Rf8+ {[%clk 0:00:14]}  Kg7 {[%clk 0:00:11]} 52. e8=Q {[%clk 0:00:14]}  Rh4+ {[%clk 0:00:12]} 53. Kc5 {[%clk 0:00:14]}  Re4 {[%clk 0:00:12]} 54. Rg8+ {[%clk 0:00:11]}  Kh6 {[%clk 0:00:12]} 55. Qf8+ {[%clk 0:00:10]}  Kg5 {[%clk 0:00:12]} 56. Rh8 {[%clk 0:00:09]}  h5 {[%clk 0:00:12]} 57. Qf2 {[%clk 0:00:08]}  Rg4 {[%clk 0:00:12]} 58. Kb6 {[%clk 0:00:07]}  h4 {[%clk 0:00:11]} 59. Be7# {[%clk 0:00:07]} 1-0


[Site "https://www.chess.com"]